[Event "Titled Tuesday Blitz June 27 Late 2023"]
[White "Sargsyan, Shant"]
[Black "Mihajlov, Sebastian"]
[WhiteFideId "13306766"]
[BlackFideId "1512110"]
[WhiteElo "3032"]
[BlackElo "2761"]
[Result "0-1"]
[Round "10"]
[TimeControl "180+2"]
[Date "2023.06.27"]
[WhiteClock "0:00:00"]
[BlackClock "0:00:16"]
[Board "3"]

1. c4 {[%clk 0:03:00]}  Nf6 {[%clk 0:02:57]} 2. g3 {[%clk 0:03:01]}  g6 {[%clk 0:02:58]} 3. Bg2 {[%clk 0:03:01]}  Bg7 {[%clk 0:02:58]} 4. Nc3 {[%clk 0:03:02]}  O-O {[%clk 0:02:59]} 5. Nf3 {[%clk 0:03:02]}  d6 {[%clk 0:02:59]} 6. O-O {[%clk 0:03:01]}  Nc6 {[%clk 0:03:00]} 7. d3 {[%clk 0:03:02]}  h6 {[%clk 0:02:58]} 8. Rb1 {[%clk 0:03:02]}  e5 {[%clk 0:02:55]} 9. b4 {[%clk 0:03:00]}  Ne8 {[%clk 0:02:50]} 10. b5 {[%clk 0:03:00]}  Ne7 {[%clk 0:02:51]} 11. a4 {[%clk 0:02:57]}  f5 {[%clk 0:02:51]} 12. Nd2 {[%clk 0:02:57]}  c6 {[%clk 0:02:45]} 13. Ba3 {[%clk 0:02:55]}  g5 {[%clk 0:02:32]} 14. bxc6 {[%clk 0:02:55]}  bxc6 {[%clk 0:02:31]} 15. e3 {[%clk 0:02:50]}  g4 {[%clk 0:02:19]} 16. Ne2 {[%clk 0:02:41]}  h5 {[%clk 0:02:18]} 17. d4 {[%clk 0:02:40]}  e4 {[%clk 0:02:15]} 18. Nf4 {[%clk 0:02:40]}  Nf6 {[%clk 0:02:13]} 19. h4 {[%clk 0:02:38]}  Kh7 {[%clk 0:01:52]} 20. d5 {[%clk 0:02:35]}  c5 {[%clk 0:01:51]} 21. Bb2 {[%clk 0:02:34]}  Qe8 {[%clk 0:01:48]} 22. Qc2 {[%clk 0:02:32]}  a5 {[%clk 0:01:42]} 23. Bc3 {[%clk 0:02:30]}  Bd7 {[%clk 0:01:42]} 24. Rb6 {[%clk 0:02:24]}  Nc8 {[%clk 0:01:36]} 25. Rb7 {[%clk 0:02:18]}  Bxa4 {[%clk 0:01:30]} 26. Qb2 {[%clk 0:02:11]}  Rf7 {[%clk 0:01:22]} 27. Bxf6 {[%clk 0:01:43]}  Bxf6 {[%clk 0:01:21]} 28. Qxf6 {[%clk 0:01:43]}  Rxb7 {[%clk 0:01:22]} 29. Ne6 {[%clk 0:01:44]}  Rf7 {[%clk 0:01:08]} 30. Ng5+ {[%clk 0:01:39]}  Kg8 {[%clk 0:01:07]} 31. Nxf7 {[%clk 0:01:27]}  Qxf7 {[%clk 0:01:07]} 32. Qg5+ {[%clk 0:01:28]}  Kh8 {[%clk 0:00:59]} 33. Qh6+ {[%clk 0:01:15]}  Kg8 {[%clk 0:00:58]} 34. Qg5+ {[%clk 0:01:16]}  Kh8 {[%clk 0:00:59]} 35. Rb1 {[%clk 0:01:16]}  Be8 {[%clk 0:00:57]} 36. Nxe4 {[%clk 0:00:52]}  fxe4 {[%clk 0:00:57]} 37. Bxe4 {[%clk 0:00:53]}  Qg7 {[%clk 0:00:45]} 38. Qd8 {[%clk 0:00:49]}  Qe7 {[%clk 0:00:45]} 39. Qxe7 {[%clk 0:00:36]}  Nxe7 {[%clk 0:00:46]} 40. Rb7 {[%clk 0:00:36]}  Ng6 {[%clk 0:00:41]} 41. Bc2 {[%clk 0:00:36]}  a4 {[%clk 0:00:41]} 42. Rb6 {[%clk 0:00:29]}  a3 {[%clk 0:00:41]} 43. Bb1 {[%clk 0:00:29]}  Ne5 {[%clk 0:00:36]} 44. Ba2 {[%clk 0:00:30]}  Bg6 {[%clk 0:00:32]} 45. Rxd6 {[%clk 0:00:28]}  Nf3+ {[%clk 0:00:32]} 46. Kg2 {[%clk 0:00:27]}  Kg7 {[%clk 0:00:26]} 47. Rd7+ {[%clk 0:00:24]}  Bf7 {[%clk 0:00:24]} 48. Rc7 {[%clk 0:00:19]}  Rb8 {[%clk 0:00:24]} 49. d6 {[%clk 0:00:19]}  Rb2 {[%clk 0:00:21]} 50. d7 {[%clk 0:00:19]}  Rd2 {[%clk 0:00:20]} 51. Bb3 {[%clk 0:00:19]}  Kf6 {[%clk 0:00:18]} 52. Ra7 {[%clk 0:00:16]}  Ke7 {[%clk 0:00:17]} 53. d8=Q+ {[%clk 0:00:17]}  Kxd8 {[%clk 0:00:16]} 54. Rxf7 {[%clk 0:00:17]}  Rb2 {[%clk 0:00:15]} 55. Bd1 {[%clk 0:00:16]}  a2 {[%clk 0:00:12]} 56. Ra7 {[%clk 0:00:16]}  Rb1 {[%clk 0:00:11]} 57. Bxf3 {[%clk 0:00:08]}  a1=Q {[%clk 0:00:12]} 58. Ra8+ {[%clk 0:00:04]}  Kc7 {[%clk 0:00:10]} 59. Rxa1 {[%clk 0:00:05]}  gxf3+ {[%clk 0:00:10]} 60. Kxf3 {[%clk 0:00:06]}  Rxa1 {[%clk 0:00:10]} 61. g4 {[%clk 0:00:07]}  hxg4+ {[%clk 0:00:10]} 62. Kxg4 {[%clk 0:00:07]}  Kd6 {[%clk 0:00:11]} 63. h5 {[%clk 0:00:07]}  Ke6 {[%clk 0:00:12]} 64. f4 {[%clk 0:00:03]}  Kf6 {[%clk 0:00:13]} 65. e4 {[%clk 0:00:03]}  Rg1+ {[%clk 0:00:14]} 66. Kf3 {[%clk 0:00:03]}  Rc1 {[%clk 0:00:12]} 67. Kg4 {[%clk 0:00:04]}  Rxc4 {[%clk 0:00:11]} 68. e5+ {[%clk 0:00:05]}  Ke6 {[%clk 0:00:11]} 69. Kg5 {[%clk 0:00:04]}  Rc1 {[%clk 0:00:12]} 70. h6 {[%clk 0:00:03]}  Rg1+ {[%clk 0:00:13]} 71. Kh5 {[%clk 0:00:03]}  c4 {[%clk 0:00:14]} 72. h7 {[%clk 0:00:02]}  Rh1+ {[%clk 0:00:15]} 73. Kg6 {[%clk 0:00:02]}  c3 {[%clk 0:00:16]} 74. f5+ {[%clk 0:00:02]}  Kxe5 {[%clk 0:00:16]} 75. f6 {[%clk 0:00:00]}  Rxh7 {[%clk 0:00:16]} 0-1


[Site "https://www.chess.com"]

[Event "Titled Tuesday Blitz June 27 Late 2023"]
[White "Indjic, Aleksandar"]
[Black "Nihal Sarin"]
[WhiteFideId "911925"]
[BlackFideId "25092340"]
[WhiteElo "2970"]
[BlackElo "3107"]
[Result "0-1"]
[Round "10"]
[TimeControl "180+2"]
[Date "2023.06.27"]
[WhiteClock "0:00:06"]
[BlackClock "0:00:17"]
[Board "5"]

1. e4 {[%clk 0:03:00]}  e5 {[%clk 0:02:56]} 2. Nf3 {[%clk 0:03:01]}  Nc6 {[%clk 0:02:56]} 3. Bb5 {[%clk 0:03:00]}  a6 {[%clk 0:02:57]} 4. Ba4 {[%clk 0:02:59]}  Nf6 {[%clk 0:02:57]} 5. O-O {[%clk 0:02:58]}  Bc5 {[%clk 0:02:58]} 6. Bxc6 {[%clk 0:02:56]}  dxc6 {[%clk 0:02:58]} 7. d3 {[%clk 0:02:56]}  Qe7 {[%clk 0:02:58]} 8. Be3 {[%clk 0:02:54]}  Bg4 {[%clk 0:02:50]} 9. Nbd2 {[%clk 0:02:53]}  Nd7 {[%clk 0:02:47]} 10. Qe1 {[%clk 0:02:50]}  f6 {[%clk 0:02:45]} 11. Bxc5 {[%clk 0:02:48]}  Nxc5 {[%clk 0:02:46]} 12. Qe3 {[%clk 0:02:46]}  Ne6 {[%clk 0:02:37]} 13. a4 {[%clk 0:02:45]}  O-O {[%clk 0:02:34]} 14. a5 {[%clk 0:02:44]}  c5 {[%clk 0:02:28]} 15. Kh1 {[%clk 0:02:41]}  Rad8 {[%clk 0:02:28]} 16. b3 {[%clk 0:02:39]}  Qf7 {[%clk 0:02:25]} 17. Nc4 {[%clk 0:02:37]}  Qh5 {[%clk 0:02:23]} 18. Ne1 {[%clk 0:02:36]}  Nd4 {[%clk 0:02:14]} 19. Rb1 {[%clk 0:02:33]}  Be6 {[%clk 0:01:49]} 20. f3 {[%clk 0:02:23]}  Qe8 {[%clk 0:01:34]} 21. Rf2 {[%clk 0:02:17]}  Qb5 {[%clk 0:01:32]} 22. Qd2 {[%clk 0:02:10]}  Nc6 {[%clk 0:01:28]} 23. Ra1 {[%clk 0:02:09]}  Qb4 {[%clk 0:01:27]} 24. Qxb4 {[%clk 0:02:09]}  cxb4 {[%clk 0:01:27]} 25. Kg1 {[%clk 0:01:59]}  Nd4 {[%clk 0:01:21]} 26. Ne3 {[%clk 0:01:57]}  Rd6 {[%clk 0:01:19]} 27. g3 {[%clk 0:01:53]}  Rc6 {[%clk 0:01:18]} 28. f4 {[%clk 0:01:53]}  Rc5 {[%clk 0:01:18]} 29. f5 {[%clk 0:01:52]}  Bf7 {[%clk 0:01:16]} 30. Nc4 {[%clk 0:01:22]}  Nc6 {[%clk 0:01:15]} 31. Nf3 {[%clk 0:01:21]}  Bxc4 {[%clk 0:01:13]} 32. dxc4 {[%clk 0:01:20]}  Rd8 {[%clk 0:01:13]} 33. Ne1 {[%clk 0:01:08]}  Rxa5 {[%clk 0:01:10]} 34. Rb1 {[%clk 0:01:03]}  Ra2 {[%clk 0:01:06]} 35. Nd3 {[%clk 0:01:03]}  a5 {[%clk 0:01:04]} 36. Nc5 {[%clk 0:01:02]}  b6 {[%clk 0:00:59]} 37. Ne6 {[%clk 0:01:02]}  Rd7 {[%clk 0:00:59]} 38. Re2 {[%clk 0:01:02]}  Nd4 {[%clk 0:00:44]} 39. Nxd4 {[%clk 0:01:02]}  Rxd4 {[%clk 0:00:45]} 40. Kf2 {[%clk 0:01:01]}  Kf7 {[%clk 0:00:43]} 41. g4 {[%clk 0:00:59]}  a4 {[%clk 0:00:43]} 42. Rbe1 {[%clk 0:00:34]}  Rb2 {[%clk 0:00:34]} 43. bxa4 {[%clk 0:00:21]}  Rxc4 {[%clk 0:00:34]} 44. Rd1 {[%clk 0:00:21]}  Rcxc2 {[%clk 0:00:34]} 45. Rxc2 {[%clk 0:00:17]}  Rxc2+ {[%clk 0:00:35]} 46. Ke3 {[%clk 0:00:18]}  b3 {[%clk 0:00:32]} 47. h4 {[%clk 0:00:13]}  Ke7 {[%clk 0:00:21]} 48. g5 {[%clk 0:00:12]}  c5 {[%clk 0:00:20]} 49. g6 {[%clk 0:00:06]}  h5 {[%clk 0:00:17]} 0-1


[Site "https://www.chess.com"]

[Event "Titled Tuesday Blitz June 27 Late 2023"]
[White "Naroditsky, Daniel"]
[Black "Xiong, Jeffery"]
[WhiteFideId "2026961"]
[BlackFideId "2047640"]
[WhiteElo "3096"]
[BlackElo "2926"]
[Result "1/2-1/2"]
[Round "10"]
[TimeControl "180+2"]
[Date "2023.06.27"]
[WhiteClock "0:00:25"]
[BlackClock "0:01:24"]
[Board "6"]

1. e4 {[%clk 0:03:00]}  c5 {[%clk 0:03:00]} 2. Nf3 {[%clk 0:02:58]}  d6 {[%clk 0:03:00]} 3. Bb5+ {[%clk 0:02:58]}  Nc6 {[%clk 0:02:59]} 4. O-O {[%clk 0:02:58]}  Bd7 {[%clk 0:02:59]} 5. Re1 {[%clk 0:02:59]}  a6 {[%clk 0:02:54]} 6. Bf1 {[%clk 0:02:59]}  Nf6 {[%clk 0:02:51]} 7. c3 {[%clk 0:02:59]}  Bg4 {[%clk 0:02:51]} 8. h3 {[%clk 0:02:59]}  Bxf3 {[%clk 0:02:51]} 9. Qxf3 {[%clk 0:03:00]}  e6 {[%clk 0:02:52]} 10. Qd1 {[%clk 0:02:55]}  Be7 {[%clk 0:02:52]} 11. d4 {[%clk 0:02:56]}  d5 {[%clk 0:02:43]} 12. e5 {[%clk 0:02:21]}  Nd7 {[%clk 0:02:43]} 13. Be3 {[%clk 0:02:15]}  Qb6 {[%clk 0:02:38]} 14. b3 {[%clk 0:01:45]}  O-O {[%clk 0:02:38]} 15. Bd3 {[%clk 0:01:44]}  cxd4 {[%clk 0:02:37]} 16. cxd4 {[%clk 0:01:44]}  f5 {[%clk 0:02:38]} 17. exf6 {[%clk 0:01:36]}  Bxf6 {[%clk 0:02:28]} 18. Qh5 {[%clk 0:01:24]}  g6 {[%clk 0:02:28]} 19. Bxg6 {[%clk 0:01:24]}  hxg6 {[%clk 0:02:29]} 20. Qxg6+ {[%clk 0:01:25]}  Bg7 {[%clk 0:02:27]} 21. Qxe6+ {[%clk 0:01:18]}  Rf7 {[%clk 0:02:27]} 22. Nc3 {[%clk 0:01:07]}  Nxd4 {[%clk 0:02:18]} 23. Qxd5 {[%clk 0:01:04]}  Qc6 {[%clk 0:02:12]} 24. Rad1 {[%clk 0:00:55]}  Qxd5 {[%clk 0:01:38]} 25. Nxd5 {[%clk 0:00:55]}  Nc2 {[%clk 0:01:39]} 26. Re2 {[%clk 0:00:54]}  Nxe3 {[%clk 0:01:40]} 27. Rxe3 {[%clk 0:00:51]}  Be5 {[%clk 0:01:28]} 28. Nb6 {[%clk 0:00:44]}  Nxb6 {[%clk 0:01:27]} 29. Rxe5 {[%clk 0:00:44]}  Rc8 {[%clk 0:01:28]} 30. Rd2 {[%clk 0:00:42]}  Nd7 {[%clk 0:01:26]} 31. Red5 {[%clk 0:00:37]}  Rc7 {[%clk 0:01:27]} 32. g4 {[%clk 0:00:34]}  Nf6 {[%clk 0:01:27]} 33. Re5 {[%clk 0:00:31]}  Nd7 {[%clk 0:01:24]} 34. Red5 {[%clk 0:00:29]}  Nf6 {[%clk 0:01:24]} 35. Re5 {[%clk 0:00:30]}  Nd7 {[%clk 0:01:24]} 36. Red5 {[%clk 0:00:25]} 1/2-1/2


[Site "https://www.chess.com"]

[Event "Titled Tuesday Blitz June 27 Late 2023"]
[White "Pranesh M"]
[Black "Durarbayli, Vasif"]
[WhiteFideId "35028600"]
[BlackFideId "13402935"]
[WhiteElo "3028"]
[BlackElo "2922"]
[Result "1-0"]
[Round "10"]
[TimeControl "180+2"]
[Date "2023.06.27"]
[WhiteClock "0:01:26"]
[BlackClock "0:00:01"]
[Board "7"]

1. e4 {[%clk 0:03:00]}  c5 {[%clk 0:02:59]} 2. Nf3 {[%clk 0:03:01]}  d6 {[%clk 0:03:00]} 3. d4 {[%clk 0:03:01]}  cxd4 {[%clk 0:03:01]} 4. Nxd4 {[%clk 0:03:01]}  Nf6 {[%clk 0:03:02]} 5. Nc3 {[%clk 0:03:02]}  Nc6 {[%clk 0:03:03]} 6. Bg5 {[%clk 0:03:02]}  Qb6 {[%clk 0:03:03]} 7. Nb3 {[%clk 0:03:02]}  e6 {[%clk 0:03:03]} 8. Qd2 {[%clk 0:03:01]}  a6 {[%clk 0:03:03]} 9. O-O-O {[%clk 0:03:01]}  Be7 {[%clk 0:03:04]} 10. f4 {[%clk 0:03:01]}  O-O {[%clk 0:03:03]} 11. g4 {[%clk 0:02:59]}  Rd8 {[%clk 0:03:00]} 12. Bd3 {[%clk 0:02:56]}  Nxg4 {[%clk 0:02:54]} 13. Bxe7 {[%clk 0:02:56]}  Nxe7 {[%clk 0:02:55]} 14. Rhg1 {[%clk 0:02:56]}  Nf2 {[%clk 0:02:46]} 15. Rdf1 {[%clk 0:02:53]}  Nxd3+ {[%clk 0:02:46]} 16. cxd3 {[%clk 0:02:54]}  d5 {[%clk 0:02:35]} 17. f5 {[%clk 0:02:54]}  exf5 {[%clk 0:02:34]} 18. Qg5 {[%clk 0:02:51]}  Kf8 {[%clk 0:01:37]} 19. Qxg7+ {[%clk 0:02:49]}  Ke8 {[%clk 0:01:37]} 20. exd5 {[%clk 0:02:35]}  Nxd5 {[%clk 0:01:14]} 21. Qe5+ {[%clk 0:02:35]}  Be6 {[%clk 0:01:11]} 22. Nd4 {[%clk 0:02:24]}  Nxc3 {[%clk 0:00:55]} 23. bxc3 {[%clk 0:02:24]}  Rxd4 {[%clk 0:00:54]} 24. cxd4 {[%clk 0:02:20]}  Rc8+ {[%clk 0:00:45]} 25. Kd2 {[%clk 0:02:20]}  Qb2+ {[%clk 0:00:43]} 26. Ke3 {[%clk 0:02:20]}  Rc2 {[%clk 0:00:43]} 27. Qd6 {[%clk 0:02:02]}  Rg2 {[%clk 0:00:26]} 28. Rxg2 {[%clk 0:01:53]}  Qxg2 {[%clk 0:00:27]} 29. Rf2 {[%clk 0:01:49]}  Qg5+ {[%clk 0:00:21]} 30. Qf4 {[%clk 0:01:48]}  Qg1 {[%clk 0:00:21]} 31. Qg3 {[%clk 0:01:46]}  Qc1+ {[%clk 0:00:19]} 32. Rd2 {[%clk 0:01:46]}  Kd7 {[%clk 0:00:18]} 33. Ke2 {[%clk 0:01:45]}  Qa1 {[%clk 0:00:07]} 34. Rc2 {[%clk 0:01:40]}  Qxd4 {[%clk 0:00:05]} 35. Rc7+ {[%clk 0:01:40]}  Kd8 {[%clk 0:00:04]} 36. Rxb7 {[%clk 0:01:41]}  Bd7 {[%clk 0:00:01]} 37. Qe3 {[%clk 0:01:27]}  Qd5 {[%clk 0:00:01]} 38. Rb8+ {[%clk 0:01:26]}  Kc7 {[%clk 0:00:01]} 39. Qb6# {[%clk 0:01:26]} 1-0


[Site "https://www.chess.com"]

[Event "Titled Tuesday Blitz June 27 Late 2023"]
[White "Dardha, Daniel"]
[Black "Grischuk, Alexander"]
[WhiteFideId "240990"]
[BlackFideId "4126025"]
[WhiteElo "2915"]
[BlackElo "3021"]
[Result "0-1"]
[Round "10"]
[TimeControl "180+2"]
[Date "2023.06.27"]
[WhiteClock "0:00:00"]
[BlackClock "0:00:30"]
[Board "8"]

1. e4 {[%clk 0:03:00]}  e5 {[%clk 0:03:00]} 2. Nf3 {[%clk 0:02:57]}  Nc6 {[%clk 0:03:00]} 3. Bb5 {[%clk 0:02:49]}  Nf6 {[%clk 0:02:59]} 4. O-O {[%clk 0:02:44]}  Nxe4 {[%clk 0:02:59]} 5. Re1 {[%clk 0:02:43]}  Nd6 {[%clk 0:02:59]} 6. Nxe5 {[%clk 0:02:43]}  Be7 {[%clk 0:03:00]} 7. Bf1 {[%clk 0:02:42]}  Nxe5 {[%clk 0:03:00]} 8. Rxe5 {[%clk 0:02:43]}  O-O {[%clk 0:03:00]} 9. d4 {[%clk 0:02:39]}  Bf6 {[%clk 0:03:00]} 10. Re2 {[%clk 0:02:39]}  b6 {[%clk 0:02:58]} 11. Re1 {[%clk 0:02:39]}  Bb7 {[%clk 0:02:57]} 12. Bf4 {[%clk 0:02:38]}  Nf5 {[%clk 0:02:56]} 13. c3 {[%clk 0:02:37]}  Bg5 {[%clk 0:02:49]} 14. Qg4 {[%clk 0:02:27]}  Bxf4 {[%clk 0:02:49]} 15. Qxf4 {[%clk 0:02:27]}  Nh4 {[%clk 0:02:47]} 16. Nd2 {[%clk 0:02:24]}  d6 {[%clk 0:02:43]} 17. Re3 {[%clk 0:02:09]}  Ng6 {[%clk 0:02:37]} 18. Qg3 {[%clk 0:02:07]}  c5 {[%clk 0:01:55]} 19. Nc4 {[%clk 0:01:58]}  cxd4 {[%clk 0:01:54]} 20. cxd4 {[%clk 0:01:59]}  Bd5 {[%clk 0:01:25]} 21. Nxd6 {[%clk 0:01:55]}  Qf6 {[%clk 0:01:25]} 22. Nb5 {[%clk 0:01:50]}  Rad8 {[%clk 0:01:24]} 23. Rd1 {[%clk 0:01:39]}  Bxa2 {[%clk 0:01:07]} 24. Ra3 {[%clk 0:01:39]}  Bd5 {[%clk 0:01:05]} 25. Rxa7 {[%clk 0:01:38]}  Bc6 {[%clk 0:00:55]} 26. h3 {[%clk 0:00:49]}  Nf4 {[%clk 0:00:45]} 27. Kh2 {[%clk 0:00:39]}  Rd5 {[%clk 0:00:44]} 28. Qb3 {[%clk 0:00:19]}  Nxg2 {[%clk 0:00:39]} 29. Bxg2 {[%clk 0:00:15]}  Rxb5 {[%clk 0:00:39]} 30. Qe3 {[%clk 0:00:00]}  Qd6+ {[%clk 0:00:30]} 0-1


[Site "https://www.chess.com"]

[Event "Titled Tuesday Blitz June 27 Late 2023"]
[White "Zhigalko, Sergei"]
[Black "Terry, Renato"]
[WhiteFideId "13502956"]
[BlackFideId "3803457"]
[WhiteElo "2896"]
[BlackElo "3007"]
[Result "1-0"]
[Round "10"]
[TimeControl "180+2"]
[Date "2023.06.27"]
[WhiteClock "0:00:02"]
[BlackClock "0:00:00"]
[Board "9"]

1. e4 {[%clk 0:03:00]}  c6 {[%clk 0:02:58]} 2. d4 {[%clk 0:03:00]}  d5 {[%clk 0:02:59]} 3. e5 {[%clk 0:03:00]}  c5 {[%clk 0:02:59]} 4. Nf3 {[%clk 0:03:00]}  cxd4 {[%clk 0:02:59]} 5. Qxd4 {[%clk 0:03:01]}  Nc6 {[%clk 0:02:59]} 6. Qf4 {[%clk 0:03:02]}  e6 {[%clk 0:02:57]} 7. Bd3 {[%clk 0:03:01]}  Nb4 {[%clk 0:02:57]} 8. O-O {[%clk 0:03:01]}  Nxd3 {[%clk 0:02:57]} 9. cxd3 {[%clk 0:03:02]}  Ne7 {[%clk 0:02:57]} 10. Nc3 {[%clk 0:03:03]}  Nf5 {[%clk 0:02:53]} 11. Nb5 {[%clk 0:02:53]}  Bd7 {[%clk 0:02:42]} 12. Nbd4 {[%clk 0:02:53]}  Nxd4 {[%clk 0:02:41]} 13. Nxd4 {[%clk 0:02:53]}  Be7 {[%clk 0:02:41]} 14. Qg3 {[%clk 0:02:53]}  Kf8 {[%clk 0:02:32]} 15. Be3 {[%clk 0:02:51]}  h5 {[%clk 0:02:27]} 16. Rac1 {[%clk 0:02:48]}  g6 {[%clk 0:02:27]} 17. Nf3 {[%clk 0:02:30]}  h4 {[%clk 0:02:25]} 18. Qg4 {[%clk 0:02:28]}  Rh5 {[%clk 0:02:13]} 19. Bc5 {[%clk 0:02:28]}  h3 {[%clk 0:01:42]} 20. g3 {[%clk 0:02:23]}  Bb5 {[%clk 0:01:22]} 21. Rfd1 {[%clk 0:02:14]}  Kg7 {[%clk 0:01:18]} 22. Qb4 {[%clk 0:01:39]}  Bxc5 {[%clk 0:01:15]} 23. Rxc5 {[%clk 0:01:40]}  Bc6 {[%clk 0:01:15]} 24. Qc3 {[%clk 0:01:07]}  Qc7 {[%clk 0:00:54]} 25. b4 {[%clk 0:00:51]}  a6 {[%clk 0:00:54]} 26. a4 {[%clk 0:00:46]}  Qd7 {[%clk 0:00:52]} 27. Nd4 {[%clk 0:00:43]}  Bxa4 {[%clk 0:00:46]} 28. Rc7 {[%clk 0:00:44]}  Qe8 {[%clk 0:00:46]} 29. Rc1 {[%clk 0:00:42]}  Kg8 {[%clk 0:00:39]} 30. Rxb7 {[%clk 0:00:28]}  Rxe5 {[%clk 0:00:26]} 31. Qc7 {[%clk 0:00:10]}  Rh5 {[%clk 0:00:25]} 32. Re1 {[%clk 0:00:08]}  e5 {[%clk 0:00:19]} 33. f4 {[%clk 0:00:09]}  e4 {[%clk 0:00:19]} 34. dxe4 {[%clk 0:00:09]}  dxe4 {[%clk 0:00:20]} 35. Rxe4 {[%clk 0:00:10]}  Qf8 {[%clk 0:00:17]} 36. Re7 {[%clk 0:00:09]}  Rc8 {[%clk 0:00:16]} 37. Rxf7 {[%clk 0:00:05]}  Rxc7 {[%clk 0:00:16]} 38. Rxf8+ {[%clk 0:00:06]}  Kxf8 {[%clk 0:00:17]} 39. Rxc7 {[%clk 0:00:06]}  Rd5 {[%clk 0:00:18]} 40. Ne6+ {[%clk 0:00:04]}  Ke8 {[%clk 0:00:16]} 41. Ng7+ {[%clk 0:00:04]}  Kf8 {[%clk 0:00:16]} 42. Ne6+ {[%clk 0:00:05]}  Ke8 {[%clk 0:00:11]} 43. Ng5 {[%clk 0:00:06]}  Bd7 {[%clk 0:00:09]} 44. Rc2 {[%clk 0:00:03]}  Rd4 {[%clk 0:00:08]} 45. Rb2 {[%clk 0:00:02]}  Bg4 {[%clk 0:00:06]} 46. Kf2 {[%clk 0:00:02]}  Rd1 {[%clk 0:00:05]} 47. Ne4 {[%clk 0:00:03]}  Ke7 {[%clk 0:00:04]} 48. Ke3 {[%clk 0:00:03]}  Ke6 {[%clk 0:00:04]} 49. Nf2 {[%clk 0:00:02]}  Re1+ {[%clk 0:00:04]} 50. Kd4 {[%clk 0:00:03]}  Kf5 {[%clk 0:00:00]} 51. b5 {[%clk 0:00:02]} 1-0


[Site "https://www.chess.com"]

[Event "Titled Tuesday Blitz June 27 Late 2023"]
[White "Carlsen, Magnus"]
[Black "Mikaelyan, Arman"]
[WhiteFideId "1503014"]
[BlackFideId "13304852"]
[WhiteElo "3267"]
[BlackElo "2903"]
[Result "1-0"]
[Round "10"]
[TimeControl "180+2"]
[Date "2023.06.27"]
[WhiteClock "0:02:32"]
[BlackClock "0:00:07"]
[Board "12"]

1. e4 {[%clk 0:03:00]}  c5 {[%clk 0:02:59]} 2. Nf3 {[%clk 0:03:01]}  Nc6 {[%clk 0:02:59]} 3. Bb5 {[%clk 0:03:01]}  e6 {[%clk 0:02:59]} 4. O-O {[%clk 0:03:01]}  Nge7 {[%clk 0:02:59]} 5. Re1 {[%clk 0:03:01]}  Ng6 {[%clk 0:02:57]} 6. c3 {[%clk 0:03:00]}  d5 {[%clk 0:02:57]} 7. h4 {[%clk 0:03:00]}  dxe4 {[%clk 0:02:46]} 8. Rxe4 {[%clk 0:02:59]}  Bd6 {[%clk 0:02:47]} 9. h5 {[%clk 0:02:56]}  Ne7 {[%clk 0:02:47]} 10. d4 {[%clk 0:02:54]}  a6 {[%clk 0:02:41]} 11. Ba4 {[%clk 0:02:50]}  b5 {[%clk 0:02:38]} 12. dxc5 {[%clk 0:02:48]}  Bxc5 {[%clk 0:02:32]} 13. Qxd8+ {[%clk 0:02:49]}  Nxd8 {[%clk 0:02:20]} 14. Bc2 {[%clk 0:02:50]}  Bb7 {[%clk 0:02:21]} 15. Rg4 {[%clk 0:02:51]}  Bxf3 {[%clk 0:02:13]} 16. gxf3 {[%clk 0:02:51]}  Nf5 {[%clk 0:01:51]} 17. a4 {[%clk 0:02:50]}  bxa4 {[%clk 0:01:45]} 18. Rgxa4 {[%clk 0:02:49]}  O-O {[%clk 0:01:12]} 19. Rxa6 {[%clk 0:02:49]}  Rc8 {[%clk 0:00:58]} 20. Nd2 {[%clk 0:02:48]}  Nc6 {[%clk 0:00:54]} 21. Nc4 {[%clk 0:02:47]}  Nce7 {[%clk 0:00:50]} 22. R1a4 {[%clk 0:02:46]}  Nd5 {[%clk 0:00:48]} 23. Bxf5 {[%clk 0:02:44]}  exf5 {[%clk 0:00:49]} 24. Kg2 {[%clk 0:02:42]}  Rfe8 {[%clk 0:00:48]} 25. Nd6 {[%clk 0:02:42]}  Bxd6 {[%clk 0:00:45]} 26. Rxd6 {[%clk 0:02:43]}  Rc5 {[%clk 0:00:28]} 27. Rd4 {[%clk 0:02:38]}  Nc7 {[%clk 0:00:26]} 28. Rd8 {[%clk 0:02:37]}  Kf8 {[%clk 0:00:23]} 29. Bf4 {[%clk 0:02:37]}  Nb5 {[%clk 0:00:18]} 30. R4d5 {[%clk 0:02:33]}  Rxd8 {[%clk 0:00:16]} 31. Rxc5 {[%clk 0:02:33]}  Na7 {[%clk 0:00:16]} 32. b4 {[%clk 0:02:32]}  Nc8 {[%clk 0:00:07]} 33. b5 {[%clk 0:02:32]} 1-0


[Site "https://www.chess.com"]

[Event "Titled Tuesday Blitz June 27 Late 2023"]
[White "Andreikin, Dmitry"]
[Black "Bazeev, German"]
[WhiteFideId "4158814"]
[BlackFideId "24119350"]
[WhiteElo "3012"]
[BlackElo "2812"]
[Result "1-0"]
[Round "10"]
[TimeControl "180+2"]
[Date "2023.06.27"]
[WhiteClock "0:02:11"]
[BlackClock "0:01:42"]
[Board "13"]

1. e4 {[%clk 0:03:00]}  c5 {[%clk 0:02:58]} 2. Nc3 {[%clk 0:03:00]}  Nc6 {[%clk 0:02:57]} 3. Bb5 {[%clk 0:03:00]}  g6 {[%clk 0:02:55]} 4. Bxc6 {[%clk 0:02:57]}  dxc6 {[%clk 0:02:54]} 5. d3 {[%clk 0:02:58]}  Bg7 {[%clk 0:02:54]} 6. Be3 {[%clk 0:02:58]}  c4 {[%clk 0:02:54]} 7. dxc4 {[%clk 0:02:55]}  Bxc3+ {[%clk 0:02:53]} 8. bxc3 {[%clk 0:02:55]}  Qxd1+ {[%clk 0:02:54]} 9. Rxd1 {[%clk 0:02:55]}  Be6 {[%clk 0:02:51]} 10. Rb1 {[%clk 0:02:54]}  b6 {[%clk 0:02:49]} 11. c5 {[%clk 0:02:53]}  b5 {[%clk 0:02:49]} 12. a4 {[%clk 0:02:49]}  a6 {[%clk 0:02:35]} 13. Ne2 {[%clk 0:02:47]}  Nf6 {[%clk 0:02:27]} 14. f3 {[%clk 0:02:47]}  Bc4 {[%clk 0:02:24]} 15. Nd4 {[%clk 0:02:47]}  Kd7 {[%clk 0:02:22]} 16. Kf2 {[%clk 0:02:42]}  e5 {[%clk 0:02:18]} 17. Nb3 {[%clk 0:02:38]}  Kc7 {[%clk 0:02:18]} 18. Na5 {[%clk 0:02:32]}  Nd7 {[%clk 0:01:59]} 19. Rhd1 {[%clk 0:02:30]}  Rad8 {[%clk 0:01:48]} 20. Bg5 {[%clk 0:02:12]}  f6 {[%clk 0:01:42]} 21. Rd6 {[%clk 0:02:11]} 1-0


[Site "https://www.chess.com"]